fUSD/lending_fUSD_20260205
["ID","MTS","AMOUNT","RATE_DAILY","PERIOD"]
[404555112,1770286241289,-500.0,0.000146,2]
[404555114,1770286241302,-500.0,0.000146,2]
[404555116,1770286241313,-500.0,0.000146,2]
[404555118,1770286241324,-500.0,0.000146,2]
[404555120,1770286241335,-500.0,0.000146,2]
[404555123,1770286241345,-500.0,0.000146,2]
[404555125,1770286241355,-500.0,0.000146,2]
[404555127,1770286241365,-500.0,0.000146,2]
[404555129,1770286241376,-500.0,0.000146,2]
[404555131,1770286241386,-500.0,0.000146,2]
[404555133,1770286241396,-500.0,0.000146,2]
[404555135,1770286241407,-500.0,0.000146,2]
[404555137,1770286241417,-500.0,0.000146,2]
[404555140,1770286241427,-500.0,0.000146,2]
[404555142,1770286241437,-500.0,0.000146,2]
[404555144,1770286241447,-823.28477405,0.00014604,2]
[404555146,1770286241457,-151.0,0.00014634,2]
[404555148,1770286241467,-736.0,0.0001467,2]
[404555150,1770286241478,-152.0,0.00014892,3]
[404555152,1770286241488,-3292.0,0.00014916,2]
[404555155,1770286241502,-16211.76300049,0.0001497,2]
[404555157,1770286241512,-250.0,0.00015,2]
[404555159,1770286241522,-152.62,0.00015,2]
[404555161,1770286241532,-500.0,0.00015045,2]
[404555163,1770286241542,-500.0,0.00015045,2]
[404555165,1770286241553,-500.0,0.00015052,2]
[404555167,1770286241564,-17279.7252772,0.00015055,2]
[404555170,1770286241574,-5771.0320539,0.00015055,2]
[404555172,1770286241585,-1000.0,0.00015148,2]
[404555174,1770286241595,-500.0,0.00015148,2]
[404555176,1770286241604,-1000.0,0.00015148,2]
[404555178,1770286241615,-347.37162909,0.00015148,2]
[404555180,1770286241625,-1600.0,0.00015198,2]
[404555182,1770286241635,-166.57,0.00015563,2]
[404555184,1770286241645,-13816.0,0.000156,2]
[404555186,1770286241654,-1500.0,0.00015696,2]
[404555188,1770286241664,-1004.24108191,0.00015696,2]
[404555190,1770286241675,-166.66,0.00015698,2]
[404555193,1770286241689,-16211.76300049,0.00015703,2]
[404555195,1770286241699,-152.93,0.00015734,2]
[404555197,1770286241710,-3353.79,0.0001576,2]
[404555199,1770286241720,-152.0173956,0.00015782,2]
[404555201,1770286241730,-197.54,0.00015918,2]
[404555204,1770286241741,-301.91,0.00015996,2]
[404555206,1770286241751,-170.0,0.00015999,2]
[404555208,1770286241761,-166.66,0.00016028,2]
[404555210,1770286241772,-433.0,0.00016048,2]
[404555212,1770286241782,-450.32,0.00016212,2]
[404555214,1770286241792,-500.0,0.00016222,2]
[404555216,1770286241803,-1428.38747117,0.00016222,2]
[404555218,1770286241813,-500.0,0.00016222,2]
[404555220,1770286241824,-578.20924308,0.00016222,2]
[404555223,1770286241835,-500.0,0.00016222,2]
[404555225,1770286241846,-500.0,0.00016222,2]
[404555227,1770286241856,-500.0,0.00016222,2]
[404555229,1770286241866,-500.0,0.00016222,2]
[404555231,1770286241880,-500.0,0.00016222,2]
[404555233,1770286241891,-2000.0,0.00016222,2]
[404555235,1770286241902,-216.07161542,0.00016222,2]
[404555237,1770286241912,-2000.0,0.00016222,2]
[404555240,1770286241923,-2000.0,0.00016222,2]
[404555242,1770286241933,-174.61919141,0.00016222,2]
[404555244,1770286241943,-2000.0,0.00016222,2]
[404555246,1770286241953,-2000.0,0.00016222,2]
[404555248,1770286241964,-2000.0,0.00016222,2]
[404555250,1770286241974,-2000.0,0.00016222,2]
[404555252,1770286241984,-2000.0,0.00016222,2]
[404555254,1770286241994,-2000.0,0.00016222,2]
[404555256,1770286242004,-2000.0,0.00016222,2]
[404555258,1770286242014,-2000.0,0.00016222,2]
[404555261,1770286242024,-512.54322178,0.00016222,2]
[404555263,1770286242035,-322.6107,0.00016222,2]
[404555265,1770286242046,-5000.0,0.00016222,2]
[404555267,1770286242056,-743.50770149,0.00016222,2]
[404555269,1770286242070,-250.0,0.00016222,2]
[404555271,1770286242081,-209.40437684,0.00016222,2]
[404555274,1770286242093,-250.0,0.00016222,2]
[404555276,1770286242104,-250.0,0.00016222,2]
[404555278,1770286242114,-250.0,0.00016222,2]
[404555280,1770286242124,-250.0,0.00016222,2]
[404555283,1770286242134,-250.0,0.00016222,2]
[404555286,1770286242144,-250.0,0.00016222,2]
[404555289,1770286242155,-228.82569288,0.00016222,2]
[404555292,1770286242165,-1291.24412758,0.00016244,2]
[404555295,1770286242175,-217.15233878,0.00016277,2]
[404555299,1770286242185,-152.0,0.0001631,4]
[404555302,1770286242195,-152.91785682,0.00016313,2]
[404555304,1770286242205,-225.18697532,0.00016332,2]
[404555306,1770286242219,-152.0173956,0.00016345,2]
[404555308,1770286242230,-166.66,0.00016359,2]
[404555310,1770286242239,-233.51889341,0.00016387,2]
[404555312,1770286242249,-4609.0,0.00016408,2]
[404555314,1770286242260,-166.55,0.00016427,2]
[404555317,1770286242272,-16211.76300049,0.00016435,2]
[404555319,1770286242282,-1000.0,0.00016438,2]
[404555321,1770286242292,-242.15909246,0.00016442,2]
[404555323,1770286242302,-201.25686723,0.00016465,2]
[404555325,1770286242312,-251.11897888,0.00016497,2]
[404555327,1770286242323,-1000.0,0.00016524,2]
[404555329,1770286242333,-260.4103811,0.00016552,2]
[404555331,1770286242343,-270.0455652,0.00016607,2]
[404555333,1770286242353,-280.03725112,0.00016662,2]
[404555335,1770286242363,-166.66,0.00016689,2]
[404555338,1770286242373,-1000.0,0.00016712,2]
[404555340,1770286242383,-165.83,0.00016712,2]
[404555342,1770286242393,-290.39862941,0.00016717,2]
[404555344,1770286242403,-500.0,0.00016767,2]
[404555346,1770286242413,-1481.23780761,0.0001677,2]
[404555348,1770286242423,-181.08010149,0.0001677,2]
[404555350,1770286242433,-5000.0,0.0001677,2]
[404555352,1770286242444,-209.98794847,0.0001677,2]
[404555354,1770286242454,-301.1433787,0.00016772,2]
[404555356,1770286242464,-773.71,0.00016792,2]
[404555358,1770286242474,-152.0173956,0.00016909,2]
[404555361,1770286242483,-1000.0,0.00016986,2]
[404555363,1770286242493,-151.0,0.00016988,2]
[404555365,1770286242503,-267.0,0.00016988,2]
[404555367,1770286242513,-200.0,0.00016988,2]
[404555369,1770286242523,-277.537,0.00016988,2]
[404555371,1770286242533,-229.28,0.00016988,2]
[404555373,1770286242543,-196.23,0.00016988,2]
[404555375,1770286242552,-179.178,0.00016988,2]
[404555377,1770286242562,-158.945,0.00016988,2]
[404555379,1770286242572,-250.0,0.00016988,2]
[404555381,1770286242582,-191.693,0.00016988,2]
[404555383,1770286242592,-164.442,0.00016988,2]
[404555385,1770286242602,-212.815,0.00016988,2]
[404555388,1770286242612,-250.0,0.00016988,2]
[404555390,1770286242622,-171.0,0.00016988,2]
[404555392,1770286242632,-232.419,0.00016988,2]
[404555395,1770286242655,-1335.0,0.00016988,2]
[404555397,1770286242666,-3482.0,0.00016988,2]
[404555400,1770286242677,-1411.0,0.00016988,2]
[404555402,1770286242687,-616.445,0.00016988,2]
[404555404,1770286242697,-1271.0,0.00016988,2]
[404555406,1770286242708,-1205.0,0.00016988,2]
[404555408,1770286242718,-917.0,0.00016988,2]
[404555410,1770286242729,-3254.0,0.00016988,2]
[404555412,1770286242739,-1317.0,0.00016988,2]
[404555414,1770286242749,-2466.995,0.00016988,2]
[404555416,1770286242758,-568.607,0.00016988,2]
[404555419,1770286242770,-869.18,0.00016989,2]
[404555421,1770286242780,-170.0,0.00016999,2]
[404555423,1770286242791,-300.0,0.00017,2]
[404555425,1770286242802,-166.66,0.0001702,2]
[404555427,1770286242812,-1600.0,0.00017098,2]
[404555429,1770286242822,-166.57,0.00017099,2]
[404555431,1770286242833,-16211.76300049,0.00017168,2]
[404555433,1770286242847,-1000.0,0.0001726,2]
[404555437,1770286242858,-440.0,0.00017301,2]
[404555440,1770286242868,-1536.04360649,0.00017318,2]
[404555443,1770286242878,-187.78006525,0.00017318,2]
[404555445,1770286242891,-5000.0,0.00017318,2]
[404555447,1770286242901,-152.93,0.00017334,2]
[404555449,1770286242913,-166.66,0.0001735,2]
[404555451,1770286242924,-440.0,0.0001737,2]
[404555454,1770286242935,-2200.0,0.000174,6]
[404555456,1770286242945,-951.124593,0.0001744,7]
[404555458,1770286242955,-440.0,0.00017446,2]
[404555460,1770286242965,-440.0,0.00017461,2]
[404555462,1770286242977,-152.0173956,0.00017472,2]
[404555464,1770286242987,-301.91,0.00017498,2]
[404555466,1770286242996,-2200.0,0.000175,6]
[404555468,1770286243010,-1000.0,0.00017534,2]
[404555471,1770286243020,-1000.0,0.00017555,2]
[404555473,1770286243031,-1000.0,0.00017555,2]
[404555475,1770286243042,-1000.0,0.00017555,2]
[404555477,1770286243051,-1000.0,0.00017555,2]
[404555479,1770286243062,-1000.0,0.00017555,2]
[404555481,1770286243072,-1000.0,0.00017555,2]
[404555483,1770286243083,-1000.0,0.00017555,2]
[404555485,1770286243093,-1000.0,0.00017555,2]
[404555514,1770286243432,-1000.0,0.00017555,2]
[404555517,1770286243442,-1000.0,0.00017555,2]
[404555519,1770286243452,-506.851,0.00017555,2]
[404555521,1770286243461,-440.0,0.00017573,2]
[404555523,1770286243475,-450.32,0.00017581,2]
[404555525,1770286243485,-334.5472959,0.00017591,2]
[404555527,1770286243495,-2200.0,0.000176,6]
[404555529,1770286243505,-440.0,0.00017695,2]
[404555531,1770286243515,-2200.0,0.000177,6]
[404555534,1770286243525,-152.0,0.00017728,5]
[404555536,1770286243535,-2760.06576891,0.00017762,2]
[404555538,1770286243544,-440.0,0.00017768,2]
[404555540,1770286243553,-200.0,0.00017787,2]
[404555542,1770286243564,-2747.0,0.000178,6]
[404555544,1770286243573,-1000.0,0.00017808,2]
[404555546,1770286243587,-179.37879,0.0001782,2]
[404555548,1770286243597,-179.37879,0.0001782,2]
[404555550,1770286243607,-179.37878,0.0001782,2]
[404555552,1770286243616,-500.0,0.00017846,2]
[404555554,1770286243625,-500.0,0.00017852,2]
[404555556,1770286243636,-500.0,0.00017856,2]
[404555558,1770286243645,-500.0,0.00017856,2]
[404555560,1770286243654,-194.72792766,0.00017866,2]
[404555562,1770286243664,-5000.0,0.00017866,2]
[404555565,1770286243673,-440.0,0.0001789,2]
[404555567,1770286243683,-25000.0,0.000179,3]
[404555569,1770286243693,-823.28477405,0.000179,2]
[404555571,1770286243703,-16211.76300049,0.000179,2]
[404555573,1770286243713,-188.17333529,0.000179,2]
[404555575,1770286243723,-7189.98117109,0.000179,2]
[404555577,1770286243732,-411.07033882,0.000179,2]
[404555579,1770286243742,-700.0,0.0001797,2]
[404555581,1770286243751,-500.0,0.0001797,2]
[404555583,1770286243761,-700.0,0.0001797,2]
[404555585,1770286243770,-1101.54215647,0.0001797,2]
[404555587,1770286243780,-1000.0,0.00017972,2]
[404555589,1770286243790,-256.366,0.00017972,2]
[404555591,1770286243800,-500.0,0.00017973,2]
[404555593,1770286243810,-500.0,0.00017973,2]
[404555595,1770286243820,-500.0,0.00017973,2]
[404555598,1770286243832,-500.0,0.00017973,2]
[404555600,1770286243843,-500.0,0.00017973,2]
[404555602,1770286243852,-500.0,0.00017973,2]
[404555604,1770286243862,-500.0,0.00017973,2]
[404555606,1770286243872,-309.44398841,0.00017973,2]
[404555608,1770286243883,-500.0,0.00017973,2]
[404555610,1770286243893,-500.0,0.00017973,2]
[404555612,1770286243902,-500.0,0.00017973,2]
[404555614,1770286243913,-500.0,0.00017973,2]
[404555616,1770286243922,-500.0,0.00017973,2]
[404555618,1770286243932,-500.0,0.00017973,2]
[404555620,1770286243941,-500.0,0.00017973,2]
[404555622,1770286243954,-500.0,0.00017973,2]
[404555625,1770286243964,-500.0,0.00017973,2]
[404555627,1770286243973,-500.0,0.00017973,2]
[404555629,1770286243983,-500.0,0.00017973,2]
[404555631,1770286243993,-160.11845722,0.00017973,2]
[404555633,1770286244003,-500.0,0.00017973,2]
[404555635,1770286244013,-561.5530591,0.00017973,2]
[404555637,1770286244022,-500.0,0.00017973,2]
[404555639,1770286244032,-500.0,0.00017973,2]
[404555641,1770286244041,-500.0,0.00017973,2]
[404555643,1770286244050,-500.0,0.00017973,2]
[404555645,1770286244060,-500.0,0.00017973,2]
[404555647,1770286244069,-500.0,0.00017973,2]
[404555649,1770286244080,-500.0,0.00017973,2]
[404555651,1770286244090,-500.0,0.00017973,2]
[404555653,1770286244101,-500.0,0.00017973,2]
[404555655,1770286244111,-502.08032841,0.00017973,2]
[404555657,1770286244120,-500.0,0.00017973,2]
[404555659,1770286244130,-500.0,0.00017973,2]
[404555661,1770286244139,-500.0,0.00017973,2]
[404555664,1770286244149,-500.0,0.00017973,2]
[404555666,1770286244160,-500.0,0.00017973,2]
[404555668,1770286244169,-500.0,0.00017973,2]
[404555670,1770286244179,-500.0,0.00017973,2]
[404555672,1770286244188,-262.39107038,0.00017973,2]
[404555674,1770286244198,-500.0,0.00017973,2]
[404555676,1770286244207,-500.0,0.00017973,2]
[404555678,1770286244216,-500.0,0.00017973,2]
[404555680,1770286244226,-154.5345725,0.0001799,2]
[404555682,1770286244235,-151.0,0.00017997,2]
[404555684,1770286244245,-150.0,0.00017999,2]
[404555686,1770286244255,-150.0,0.00017999,2]
[404555688,1770286244264,-231.00018382,0.00017999,2]
[404555690,1770286244273,-300.0,0.00017999,2]
[404555692,1770286244283,-1000.0,0.00017999,2]
[404555694,1770286244293,-1010.8044,0.00017999,2]
[404555696,1770286244303,-300.0,0.00017999,2]
[404555698,1770286244314,-300.0,0.00017999,2]
[404555700,1770286244324,-666.0,0.00017999,2]
[404555702,1770286244334,-300.0,0.00017999,2]
[404555704,1770286244344,-778.44145262,0.00017999,2]
[404555706,1770286244354,-300.0,0.00017999,2]
[404555708,1770286244364,-161.78,0.00017999,7]
[404555710,1770286244374,-170.0,0.00017999,2]
[404555712,1770286244384,-1641122.97489716,0.00018,2]
[404555714,1770286244393,-263259.23152145,0.00018,2]
[404555716,1770286244403,-1056464.5276757,0.00018,2]
[404555739,1770286244603,-150.0,0.00011135,2]
[404555741,1770286244613,-1675.86696782,0.00018,2]
[404555745,1770286244646,-500.0,0.00011299,2]
[404555747,1770286244656,-623.42602351,0.00018,2]
[404555750,1770286244668,-696.42071576,0.00018,2]
[404555781,1770286245160,-150.0,0.00011135,2]
[404555782,1770286245171,-156.34550878,0.0001119,2]
[404555783,1770286245181,-150.0,0.0001119,2]
[404555784,1770286245190,-177.62589492,0.00011245,2]
[404555785,1770286245200,-500.0,0.00011354,2]
[404555786,1770286245210,-500.0,0.00011409,2]
[404555787,1770286245220,-500.0,0.00011464,2]
[404555788,1770286245230,-500.0,0.00011519,2]
[404555789,1770286245240,-500.0,0.00011573,2]
[404555790,1770286245249,-500.0,0.00011628,2]
[404555791,1770286245259,-538.0,0.00011683,2]
[404555792,1770286245269,-150.27588128,0.00016,2]
[404555793,1770286245279,-335.53715244,0.00016988,2]
[404555795,1770286245289,-2931.14322521,0.00018,2]
[404555796,1770286245301,-3285.72322264,0.00018,2]
[404555797,1770286245313,-3163.88365613,0.00018,2]
[404555798,1770286245331,-541.82394898,0.00018,2]
[404555799,1770286245343,-4770.31727884,0.00018,2]
[404555800,1770286245354,-709.17,0.00018,2]
[404555828,1770286245691,-14092.63888743,0.00018,2]
[404555829,1770286245715,-124889.72960074,0.00018,2]
[404555830,1770286245727,-1366.15612037,0.00018,2]
[404555831,1770286245742,-13259.25836996,0.00018,2]
[404555832,1770286245754,-4826.16286284,0.00018,2]
[404555833,1770286245769,-11856.94146657,0.00018,2]
[404555834,1770286245780,-405.8537147,0.00018,2]
[404555835,1770286245791,-4296.75088854,0.00018,2]
[404556246,1770286305326,300.0,0.000106,3]
[404556247,1770286307427,700.0,0.000107,3]
[404556248,1770286309589,1000.0,0.000108,3]
[404556249,1770286311688,1400.0,0.000109,3]
[404556250,1770286329628,1056.82244701,0.00011207,3]
[404556251,1770286336440,700.0,0.000106,3]
[404556252,1770286338463,1500.0,0.000107,3]
[404556253,1770286340546,2300.0,0.000108,3]
[404556254,1770286342638,3100.0,0.000109,3]
[404556259,1770286671625,277.43982738,0.00021,30]
[404556260,1770286685772,157.0,0.000109,3]
[404556261,1770286799860,-1220152.5235865,0.000439,10]
[404556262,1770286799894,-1646.74397281,0.000439,18]
[404556263,1770286799926,-525451.03473566,0.000439,10]
[404556264,1770286799955,-581339.45559381,0.000439,10]
[404556265,1770286799987,-1557672.26457432,0.000439,10]
[404556266,1770286800024,-1728315.49491615,0.000439,10]
[404556267,1770286800056,-758644.1414375,0.000439,10]
[404556268,1770286800088,-884128.51700206,0.000439,10]
[404556269,1770286800119,-1742649.82418119,0.000439,10]
[404556270,1770286804916,183.0,0.000109,3]
[404556271,1770286818326,-3317610.70784088,0.000439,10]
[404556272,1770286818368,-578503.02927836,0.000439,10]
[404556273,1770286818406,-665085.33479212,0.000439,10]
[404556274,1770286818446,-1834508.87450873,0.000439,10]
[404556275,1770286818492,-2604292.05357991,0.000439,10]
[404556276,1770286921735,359.6960638,0.0002,30]
[404556277,1770287131069,2751.55300262,0.0002,120]
[404556278,1770287131102,680.83781361,0.0002,120]
[404556280,1770287250225,500.0,0.000106,3]
[404556281,1770287252307,1100.0,0.000107,3]
[404556282,1770287254406,1700.0,0.000108,3]
[404556284,1770287256508,2300.0,0.000109,3]
[404556285,1770287265942,4514.72420223,0.00013,15]
[404556324,1770287431415,-3353.79,0.00010237,2]
[404556328,1770287431426,-1200.0,0.00010372,2]
[404556330,1770287431435,-173.0,0.00010372,2]
[404556332,1770287431445,-7056.28,0.00010373,2]
[404556334,1770287431455,-1600.0,0.00010509,2]
[404556336,1770287431465,-354.62,0.00010776,2]
[404556337,1770287431475,-3596.00026265,0.00010808,2]
[404556338,1770287431485,-823.28477407,0.00010808,2]
[404556339,1770287431495,-4793.32078074,0.00010808,2]
[404556340,1770287431504,-192.19,0.0001086,2]
[404556341,1770287431514,-3325.67071581,0.00010897,2]
[404556342,1770287431524,-154.53457251,0.00010898,2]
[404556343,1770287431534,-150.0,0.00010906,2]
[404556344,1770287431543,-500.0,0.00010907,2]
[404556345,1770287431553,-500.0,0.00010907,2]
[404556346,1770287431562,-265.37077394,0.00010907,2]
[404556347,1770287431572,-500.0,0.00010907,2]
[404556348,1770287431582,-375.48807644,0.00010907,2]
[404556349,1770287431591,-310.11094198,0.00010907,2]
[404556350,1770287431602,-500.0,0.00010907,2]
[404556351,1770287431612,-500.0,0.00010907,2]
[404556352,1770287431622,-500.0,0.00010907,2]
[404556353,1770287431632,-500.0,0.00010907,2]
[404556354,1770287431642,-500.0,0.00010907,2]
[404556355,1770287431652,-500.0,0.00010907,2]
[404556356,1770287431662,-500.0,0.00010907,2]
[404556357,1770287431672,-500.0,0.00010907,2]
[404556358,1770287431683,-500.0,0.00010907,2]
[404556360,1770287431693,-500.0,0.00010907,2]
[404556361,1770287431703,-500.0,0.00010907,2]
[404556362,1770287431712,-500.0,0.00010907,2]
[404556363,1770287431723,-500.0,0.00010907,2]
[404556364,1770287431733,-500.0,0.00010907,2]
[404556365,1770287431743,-350.0,0.00010907,2]
[404556366,1770287431753,-167.45602324,0.00010907,2]
[404556367,1770287431763,-574.08388385,0.00010907,2]
[404556368,1770287431773,-500.0,0.00010907,2]
[404556369,1770287431783,-500.0,0.00010907,2]
[404556370,1770287431792,-500.0,0.00010907,2]
[404556371,1770287431801,-500.0,0.00010907,2]
[404556372,1770287431811,-500.0,0.00010907,2]
[404556373,1770287431821,-500.0,0.00010907,2]
[404556374,1770287431831,-500.0,0.00010907,2]
[404556375,1770287431841,-500.0,0.00010907,2]
[404556376,1770287431851,-500.0,0.00010907,2]
[404556377,1770287431861,-500.0,0.00010907,2]
[404556378,1770287431870,-500.0,0.00010907,2]
[404556379,1770287431880,-500.0,0.00010907,2]
[404556380,1770287431890,-168.81396988,0.00010907,2]
[404556381,1770287431903,-331.18603012,0.00010907,2]
[404556382,1770287431912,-500.0,0.00010907,2]
[404556383,1770287431922,-500.0,0.00010907,2]
[404556384,1770287431932,-500.0,0.00010907,2]
[404556385,1770287431942,-448.67065081,0.00010907,2]
[404556386,1770287431954,-51.32934919,0.00010907,2]
[404556387,1770287431964,-500.0,0.00010907,2]
[404556388,1770287431974,-500.0,0.00010907,2]
[404556389,1770287431984,-500.0,0.00010907,2]
[404556390,1770287431994,-500.0,0.00010907,2]
[404556391,1770287432003,-500.0,0.00010907,2]
[404556392,1770287432013,-500.0,0.00010907,2]
[404556393,1770287432023,-500.0,0.00010907,2]
[404556394,1770287432033,-500.0,0.00010907,2]
[404556395,1770287432042,-401.33434562,0.00010907,2]
[404556396,1770287432101,-98.66565438,0.00010907,2]
[404556397,1770287432111,-500.0,0.00010907,2]
[404556398,1770287432120,-500.0,0.00010907,2]
[404556399,1770287432129,-500.0,0.00010907,2]
[404556400,1770287432139,-500.0,0.00010907,2]
[404556401,1770287432149,-500.0,0.00010907,2]
[404556402,1770287432163,-500.0,0.00010907,2]
[404556403,1770287432173,-500.0,0.00010907,2]
[404556404,1770287432183,-500.0,0.00010907,2]
[404556405,1770287432193,-500.0,0.00010907,2]
[404556406,1770287432203,-500.0,0.00010907,2]
[404556407,1770287432213,-500.0,0.00010907,2]
[404556408,1770287432222,-500.0,0.00010907,2]
[404556409,1770287432233,-500.0,0.00010907,2]
[404556410,1770287432242,-500.0,0.00010907,2]
[404556411,1770287432252,-573.74864805,0.00010907,2]
[404556412,1770287432262,-499.99999999,0.00010907,2]
[404556413,1770287432272,-500.0,0.00010907,2]
[404556414,1770287432281,-500.0,0.00010907,2]
[404556415,1770287432291,-276.0926,0.00010908,2]
[404556416,1770287432301,-3902.14882811,0.00010908,2]
[404556417,1770287437680,-29346.80758099,0.00010908,2]
[404556418,1770287437692,-2074.32356683,0.00010908,2]
[404556419,1770287437734,-301.76454383,0.00010908,2]
[404556464,1770287439592,-188.17333529,0.00010808,2]
[404556465,1770287439602,-158.88060671,0.00010908,2]
[404556466,1770287439802,-358.75,0.00010908,2]
[404556467,1770287439814,-3463857.32487353,0.00010908,2]
[404556468,1770287439824,-2500.0,0.00010908,2]
[404556469,1770287439835,-166.66,0.00010959,2]
[404556470,1770287439850,-879.22,0.00010981,2]
[404556471,1770287439860,-1012.36,0.00011007,2]
[404556472,1770287439870,-499.99,0.00011008,2]
[404556473,1770287439880,-9999.99,0.00011008,2]
[404556474,1770287439890,-9999.99,0.00011008,2]
[404556475,1770287439901,-4999.99,0.0001105,2]
[404556476,1770287439911,-16341.73193591,0.00011099,2]
[404556477,1770287439921,-23859.91974749,0.00011099,2]
[404556478,1770287439932,-150.99,0.00011109,2]
[404556479,1770287439941,-3307.45,0.00011109,2]
[404556480,1770287439952,-299.99,0.00011109,2]
[404556481,1770287439962,-150.99,0.00011109,2]
[404556482,1770287439972,-9999.99,0.00011109,2]
[404556483,1770287439982,-999.99,0.00011109,2]
[404556484,1770287439992,-166.66,0.00011109,2]
[404556485,1770287440002,-504.09113021,0.00011181,2]
[404556486,1770287440012,-379.59384452,0.00011195,2]
[404556487,1770287440021,-500.0,0.00011201,2]
[404556488,1770287440031,-175.52213451,0.00011208,2]
[404556489,1770287440041,-165.88513622,0.00011208,2]
[404556490,1770287440051,-166.66,0.00011258,2]
[404556491,1770287440061,-250.0,0.0001126,2]
[404556492,1770287440072,-250.24316891,0.0001126,2]
[404556493,1770287440082,-1012.36,0.00011281,2]
[404556494,1770287440091,-151.0,0.00011301,2]
[404556495,1770287440101,-151.0,0.00011301,2]
[404556496,1770287440112,-151.0,0.00011301,2]
[404556497,1770287440122,-151.0,0.00011301,2]
[404556498,1770287440132,-151.0,0.00011301,2]
[404556499,1770287440142,-151.0,0.00011301,2]
[404556500,1770287440153,-151.0,0.00011301,2]
[404556501,1770287440165,-151.0,0.00011301,2]
[404556502,1770287440175,-151.0,0.00011301,2]
[404556503,1770287440185,-151.0,0.00011301,2]
[404556504,1770287440201,-151.0,0.00011301,2]
[404556505,1770287440211,-151.0,0.00011301,2]
[404556506,1770287440222,-151.0,0.00011301,2]
[404556507,1770287440232,-151.0,0.00011301,2]
[404556508,1770287440243,-151.0,0.00011301,2]
[404556509,1770287440253,-151.0,0.00011301,2]
[404556510,1770287440264,-151.0,0.00011301,2]
[404556511,1770287440274,-151.0,0.00011301,2]
[404556512,1770287440284,-151.0,0.00011301,2]
[404556513,1770287440294,-151.0,0.00011301,2]
[404556514,1770287440304,-1000.0,0.00011308,2]
[404556515,1770287440314,-166.66,0.00011408,2]
[404556516,1770287440324,-500.0,0.00011409,2]
[404556517,1770287440333,-500.0,0.00011409,2]
[404556518,1770287440343,-151.68281621,0.00011409,2]
[404556519,1770287440353,-500.0,0.00011409,2]
[404556520,1770287440363,-174.11816518,0.00011409,2]
[404556521,1770287440374,-200.0,0.00011409,2]
[404556522,1770287440383,-150.0,0.00011409,2]
[404556523,1770287440393,-201.77401449,0.00011409,2]
[404556524,1770287440403,-1680.0,0.0001141,2]
[404556525,1770287440414,-250.0,0.00011411,2]
[404556526,1770287440424,-195.0,0.00011411,2]
[404556527,1770287440434,-500.0,0.00011464,2]
[404556528,1770287440444,-505.36603291,0.00011464,2]
[404556529,1770287440454,-633.57498961,0.00011464,2]
[404556530,1770287440464,-150.0,0.00011464,2]
[404556531,1770287440474,-500.0,0.00011519,2]
[404556532,1770287440485,-200.0,0.00011519,2]
[404556533,1770287440495,-1012.36,0.00011555,2]
[404556534,1770287440506,-166.66,0.00011557,2]
[404556535,1770287440516,-500.0,0.00011573,2]
[404556536,1770287440526,-16341.73193584,0.00011596,2]
[404556537,1770287440536,-23859.91974744,0.00011596,2]
[404556538,1770287440546,-563.96761622,0.00011628,2]